[Event "25th Nepal Championship 2025"]
[Site "Hetauda"]
[Date "2025.01.27"]
[Round "4.2"]
[White "Dahal, Sushrut"]
[Black "Phuyal, Aashish"]
[Result "1-0"]
[Annotator "TA"]
[ECO "D00"]
[WhiteElo "2021"]
[BlackElo "1981"]
[PlyCount "79"]
[EventDate "2025.01.24"]
[EventType "tourn"]
[EventCountry "NEP"]
[SourceTitle "playchess.com"]
[Source "ChessBase"]
[SourceQuality "1"]
[TimeControl "5400+30"]

{[%evp 9,79,0,0,0,6,-8,0,0,0,-5,66,62,48,35,47,47,57,34,62,43,57,37,32,23,43,39,93,0,93,100,116,119,1137,1120,1120,183,180,177,354,195,291,71,77,68,70,58,70,60,210,136,130,112,222,205,217,234,258,262,443,360,482,360,309,277,521,440,1154,1141,1964,1943,29990,1102]} 1. d4 {[%emt 0:00:03]} Nf6 {[%emt 0:00:32][%cal Bg8f6,Bf6e4,Be4c3][%mdl 32]} 2. Nc3 {[%emt 0:00:01]} d5 {[%emt 0:00:14]} 3. Bf4 {[%emt 0:00:02]} e6 {[%emt 0:00:37]} 4. Nb5 {[%emt 0:02:53]} Na6 {[%emt 0:00:43]} 5. e3 {[%emt 0:00:02]} Be7 {[%emt 0:03:03]} 6. Nf3 {[%emt 0:02:27] D00: 1 d4 d5: Unusual lines.} Ne4 {[%emt 0:12:44]} 7. Bd3 {[%emt 0:14:24]} c6 {[%emt 0:10:23] Inhibits c4.} 8. Nc3 {[%emt 0:01:50] The position is equal. Active counter play!} Nxc3 {[%emt 0:05:17]} 9. bxc3 {[%emt 0:00:01]} Nb8 $146 {[%emt 0:00:36]} (9... c5 $11) (9... c5 10. Bxa6 bxa6 11. O-O Bd7 12. dxc5 Bxc5 13. c4 dxc4 14. Ne5 Ba4 15. Qg4 O-O {½-½ Goryachkina,A (2557)-Harika,D (2500) FIDE World Cup (Women) 2023 (5.6)}) 10. O-O $1 $14 {[%emt 0:00:23]} Nd7 {[%emt 0:00:47]} 11. e4 {[%emt 0:02:27]} dxe4 {[%emt 0:08:11]} 12. Bxe4 {[%emt 0:00:02]} Nf6 {[%emt 0:02:10]} 13. Bd3 {[%emt 0:00:13]} Bd6 {[%emt 0:08:17]} 14. Bg5 {[%emt 0:03:08]} Qc7 {[%emt 0:08:31]} 15. c4 {[%emt 0:01:46]} c5 {[%emt 0:13:25]} 16. c3 {[%emt 0:05:12]} h6 {[%emt 0:03:25]} 17. Bh4 {[%emt 0:01:19]} Bd7 {[%emt 0:01:09]} (17... b6 $14) 18. Qe2 {[%emt 0:06:36]} (18. Re1 $16) 18... O-O {[%emt 0:09:25]} (18... Nh5 $11 {remains equal.}) 19. Ne5 $16 {[%emt 0:01:12]} Be7 {[%emt 0:04:21]} 20. Bxf6 {[%emt 0:09:30]} gxf6 $2 {[%emt 0:00:48][%mdl 8192] [#]} (20... Bxf6 $16 21. Qe4 g6) 21. Qg4+ $1 $18 {[%emt 0:01:31]} Kh8 {[%emt 0:00:17] [#]} 22. Qh5 $2 {[%emt 0:01:33]} Kg7 {[%emt 0:00:26]} 23. Ng6 {[%emt 0:10:48]} Rfe8 {[%emt 0:01:53]} (23... Bd6) 24. Nxe7 {[%emt 0:01:55]} (24. f4 $142) 24... Rxe7 {[%emt 0:00:02]} (24... f5 25. Rae1 (25. Qh4 Qd6 $16) 25... cxd4 26. cxd4 (26. Qh4 Qd6 $18) 26... Rxe7 27. Bxf5 Qxc4) 25. f4 $2 {[%emt 0:00:40]} (25. Qxc5 Qxc5 26. dxc5 Rc8 $15) (25. Qg4+ $18 {has better winning chances.} Kf8 26. Qh4) 25... f5 {[%emt 0:01:59]} 26. Rf3 {[%emt 0:00:57] Rg3+ would kill now.} Rh8 $1 {[%emt 0:02:10]} 27. Rg3+ {[%emt 0:04:31]} Kf8 {[%emt 0:01:48]} 28. Qh4 $1 {[%emt 0:01:58]} Ke8 {[%emt 0:00:42]} ({Better is} 28... Re8 $14) 29. Qf6 {[%emt 0:01:10]} Rf8 {[%emt 0:00:02]} 30. Rf1 $36 {[%emt 0:03:21][%cal Ba1f1,Bf1e1,Be1e2][%mdl 2080] Black is under strong pressure.} Qd6 {[%emt 0:01:00]} (30... cxd4 $16 31. cxd4 Bc6) 31. Bxf5 {[%emt 0:02:13]} (31. Qxh6 cxd4 32. Qf6 dxc3 $11) 31... cxd4 {[%emt 0:00:19]} 32. cxd4 {[%emt 0:00:26]} Qa6 {[%emt 0:00:27]} 33. Bd3 {[%emt 0:01:16]} Bc6 $2 {[%emt 0:00:26]} (33... Kd8 {might work better.} 34. Qxh6 Ree8 35. Qf6+ Kc8) 34. Re1 {[%emt 0:02:07]} ({Not} 34. Qxh6 Qb6 $16) 34... Qa5 {[%emt 0:00:41]} 35. Re2 {[%emt 0:00:45]} Kd7 {[%emt 0:00:16]} 36. f5 {[%emt 0:05:53] Threatens to win with fxe6+.} Rfe8 $2 {[%emt 0:00:23]} (36... Ree8 37. fxe6+ (37. Qxh6 Kc8 $18) 37... fxe6 38. Qxh6 Kc8) 37. Rg7 {[%emt 0:14:25]} Qc3 {[%emt 0:00:47]} (37... e5 $142 38. Rxf7 Rxf7 39. Qxf7+ Kd8 40. Qf6+ Kc8 41. Rxe5 (41. dxe5 Qa3 $18) 41... Qd2 42. Rxe8+ Bxe8) 38. fxe6+ {[%emt 0:00:00]} fxe6 {[%emt 0:00:16]} 39. Qxe6+ {[%emt 0:00:00]} Kd8 {[%emt 0:00:16]} 40. Rxe7 {[%emt 0:00:00] Weighted Error Value: White=0.56/Black=1.10  Loses game:     	---       	Black=1      Missed win:     	White=1     	---        Mistake:       	White=2     	Black=10     Inaccurate:     	White=1     	Black=3      OK:         	White=6     	Black=3      Best:        	White=1     	Black=1      Strong:       	White=3     	Black=1} (40. Qd6+ $142 Bd7 41. Rexe7 (41. Rgxe7 Qc1+ 42. Re1 Qxe1+ 43. Rxe1 Rxe1+ 44. Kf2 Re6 $18) 41... Qxd4+ 42. Qxd4 Rxe7 43. Qh4 (43. Rg8+ Kc7 44. Qc5+ Bc6 45. Qxe7+ Kb6 46. Qb4+ Kc7 47. Rg7+ Bd7 48. Qb5 Kb8 49. Qxd7 h5 50. Qxb7#) 43... Kc7 44. Qxe7 Kb6 45. Qb4+ (45. Qxd7 Kc5 46. a3 a5 47. Rg6 h5 48. Qd6#) 45... Kc7 46. Qb5 (46. Qc5+ Kd8 47. Rg8+ Be8 48. Qd6+ Kc8 49. Rxe8#) 46... Kb8 47. Qxd7 h5 48. Qxb7#) 1-0

[Event "25th Nepal Championship 2025"]
[Site "Hetauda"]
[Date "2025.01.27"]
[Round "4.3"]
[White "Maharjan, Prem Krishna"]
[Black "Rajbhandari, Rijendra"]
[Result "0-1"]
[Annotator "NA RC"]
[ECO "B19"]
[WhiteElo "1882"]
[BlackElo "2016"]
[PlyCount "48"]
[EventDate "2025.01.24"]
[EventType "tourn"]
[EventCountry "NEP"]
[SourceTitle "playchess.com"]
[Source "ChessBase"]
[SourceQuality "1"]
[TimeControl "5400+30"]

1. e4 {[%emt 0:00:30]} c6 {[%emt 0:00:00]} 2. d4 {[%emt 0:00:00]} d5 {[%emt 0:00:00]} 3. Nc3 {[%emt 0:00:00]} dxe4 {[%emt 0:00:00]} 4. Nxe4 {[%emt 0:00:05]} Bf5 {[%emt 0:00:24]} 5. Ng3 {[%emt 0:00:24]} Bg6 {[%emt 0:00:10]} 6. Nf3 {[%emt 0:00:21]} Nd7 {[%emt 0:00:41]} 7. h4 {[%emt 0:00:17]} h6 {[%emt 0:00:27]} 8. h5 {[%emt 0:00:23]} Bh7 {[%emt 0:00:11]} 9. Bd3 {[%emt 0:00:29]} Bxd3 {[%emt 0:00:17]} 10. Qxd3 {[%emt 0:00:06]} e6 {[%emt 0:00:10]} 11. Bd2 {[%emt 0:02:46]} Ngf6 {[%emt 0:01:20]} 12. c4 {[%emt 0:00:37]} Be7 {[%emt 0:00:40]} 13. O-O-O {[%emt 0:00:35]} O-O {[%emt 0:00:14]} 14. Kb1 {[%emt 0:02:24]} Qc7 {[%emt 0:08:16]} 15. Rh3 {[%emt 0:03:32]} b5 {[%emt 0:01:15]} 16. cxb5 {[%emt 0:01:41]} cxb5 {[%emt 0:00:49]} 17. Qxb5 {[%emt 0:00:41]} a5 {[%emt 0:00:16]} 18. Rc1 {[%emt 0:00:46]} Qa7 {[%emt 0:00:34]} 19. Ka1 {[%emt 0:01:46]} Rfb8 {[%emt 0:00:53]} 20. Qc4 {[%emt 0:00:46]} Qb7 {[%emt 0:03:07]} 21. Rc2 {[%emt 0:01:33]} a4 {[%emt 0:02:21]} 22. a3 {[%emt 0:00:15]} Bxa3 {[%emt 0:00:16]} 23. Bc1 {[%emt 0:03:13]} Be7 {[%emt 0:02:14]} 24. Nd2 {[%emt 0:01:03]} Rc8 {[%emt 0:03:11]} 0-1

[Event "25th Nepal Championship 2025"]
[Site "Hetauda"]
[Date "2025.01.27"]
[Round "4.4"]
[White "Maharjan, Suroj"]
[Black "Tandukar, Nabin"]
[Result "0-1"]
[Annotator "NA RC"]
[ECO "A36"]
[WhiteElo "1952"]
[BlackElo "1920"]
[PlyCount "124"]
[EventDate "2025.01.24"]
[EventType "tourn"]
[EventCountry "NEP"]
[SourceTitle "playchess.com"]
[Source "ChessBase"]
[SourceQuality "1"]
[TimeControl "5400+30"]

1. e4 {[%emt 0:00:04]} e6 {[%emt 0:00:14]} 2. c4 {[%emt 0:01:04]} c5 {[%emt 0:00:33]} 3. Nc3 {[%emt 0:01:05]} Nc6 {[%emt 0:00:38]} 4. g3 {[%emt 0:00:22]} g6 {[%emt 0:00:11]} 5. Bg2 {[%emt 0:00:32]} Bg7 {[%emt 0:00:05]} 6. Nge2 {[%emt 0:00:29]} a6 {[%emt 0:00:17]} 7. O-O {[%emt 0:01:20]} d6 {[%emt 0:00:18]} 8. d3 {[%emt 0:00:18]} Nf6 {[%emt 0:01:07]} 9. h3 {[%emt 0:03:37]} O-O {[%emt 0:00:21]} 10. Be3 {[%emt 0:00:11]} Qc7 {[%emt 0:00:23]} 11. Qd2 {[%emt 0:00:12]} Re8 {[%emt 0:00:50]} 12. Rad1 {[%emt 0:02:46]} Rd8 {[%emt 0:04:04]} 13. Bg5 {[%emt 0:00:07]} Rb8 {[%emt 0:00:54]} 14. Nf4 {[%emt 0:03:12]} Re8 {[%emt 0:02:37]} 15. Nfe2 {[%emt 0:02:02]} b5 {[%emt 0:01:11]} 16. Rc1 {[%emt 0:02:18]} b4 {[%emt 0:00:03]} 17. Nd1 {[%emt 0:00:07]} Qa5 {[%emt 0:02:10]} 18. b3 {[%emt 0:00:36]} Bd7 {[%emt 0:00:12]} 19. Bf4 {[%emt 0:02:54]} Qc7 {[%emt 0:01:39]} 20. Bh6 {[%emt 0:01:24]} Bh8 {[%emt 0:00:55]} 21. Ne3 {[%emt 0:02:08]} a5 {[%emt 0:03:08]} 22. g4 {[%emt 0:01:07]} Bc8 {[%emt 0:00:30]} 23. f4 {[%emt 0:00:13]} Nd4 {[%emt 0:00:41]} 24. Nxd4 {[%emt 0:01:56]} cxd4 {[%emt 0:00:04]} 25. Nc2 {[%emt 0:00:54]} Qc5 {[%emt 0:00:02]} 26. Qf2 {[%emt 0:03:21]} Nd7 {[%emt 0:01:56]} 27. f5 {[%emt 0:01:32]} Ne5 {[%emt 0:00:44]} 28. fxg6 {[%emt 0:00:20]} hxg6 {[%emt 0:00:50]} 29. Qg3 {[%emt 0:06:40]} Rb7 {[%emt 0:03:03]} 30. Bd2 {[%emt 0:01:11]} g5 {[%emt 0:02:05]} 31. Rf2 {[%emt 0:09:06]} Ng6 {[%emt 0:01:26]} 32. Rcf1 {[%emt 0:01:28]} Be5 {[%emt 0:00:05]} 33. Qf3 {[%emt 0:00:14]} Nf4 {[%emt 0:01:21]} 34. Bh1 {[%emt 0:05:34]} f6 {[%emt 0:00:08]} 35. Rh2 {[%emt 0:00:32]} Rh7 {[%emt 0:01:02]} 36. h4 {[%emt 0:02:45]} Ree7 {[%emt 0:00:33]} 37. Bxf4 {[%emt 0:02:05]} Bxf4 {[%emt 0:00:24]} 38. Rh3 {[%emt 0:00:06]} e5 {[%emt 0:00:49]} 39. h5 {[%emt 0:02:30]} Be6 {[%emt 0:00:46]} 40. Qd1 {[%emt 0:00:11]} Ra7 {[%emt 0:00:12]} 41. Bf3 {[%emt 0:00:21]} a4 {[%emt 0:01:48]} 42. Na1 {[%emt 0:03:22]} axb3 {[%emt 0:00:49]} 43. Nxb3 {[%emt 0:01:01]} Qc8 {[%emt 0:00:02]} 44. Qe2 {[%emt 0:00:40]} Ra3 {[%emt 0:00:29]} 45. Rb1 {[%emt 0:02:13]} Rha7 {[%emt 0:00:11]} 46. Rb2 {[%emt 0:01:37]} Qa8 {[%emt 0:00:28]} 47. h6 {[%emt 0:02:24]} Rxa2 {[%emt 0:00:59]} 48. h7+ {[%emt 0:00:23]} Kh8 {[%emt 0:00:02]} 49. Rh6 {[%emt 0:01:50]} Rxb2 {[%emt 0:00:14]} 50. Qxb2 {[%emt 0:00:10]} Ra2 {[%emt 0:00:56]} 51. Qb1 {[%emt 0:00:35]} Qa3 {[%emt 0:01:25]} 52. Rxf6 {[%emt 0:00:11]} Rb2 {[%emt 0:04:00]} 53. Qf1 {[%emt 0:01:47]} Qxb3 {[%emt 0:00:25]} 54. Bd1 {[%emt 0:03:24]} Qa2 {[%emt 0:00:48]} 55. Qh3 {[%emt 0:00:56]} Be3+ {[%emt 0:15:41]} 56. Kh1 {[%emt 0:00:37]} Rf2 {[%emt 0:01:24]} 57. Rxe6 {[%emt 0:01:00]} Rf8 {[%emt 0:00:19]} 58. Rg6 {[%emt 0:08:05]} Qf2 {[%emt 0:02:52]} 59. Rg8+ {[%emt 0:01:30]} Rxg8 {[%emt 0:48:37]} 60. hxg8=Q+ {[%emt 0:00:10]} Kxg8 {[%emt 0:00:00]} 61. Qg2 {[%emt 0:00:40]} Qe1+ {[%emt 0:00:00]} 62. Kh2 {[%emt 0:02:33]} Bf4+ {[%emt 0:01:30]} 0-1

[Event "25th Nepal Championship 2025"]
[Site "Hetauda"]
[Date "2025.01.27"]
[Round "4.5"]
[White "Bhandari, Kshitiz"]
[Black "Jaiswal, Rupesh"]
[Result "1/2-1/2"]
[Annotator "NA RC"]
[ECO "E92"]
[WhiteElo "2070"]
[BlackElo "2093"]
[PlyCount "41"]
[EventDate "2025.01.24"]
[EventType "tourn"]
[EventCountry "NEP"]
[SourceTitle "playchess.com"]
[Source "ChessBase"]
[SourceQuality "1"]
[TimeControl "5400+30"]

1. d4 {[%emt 0:00:02]} Nf6 {[%emt 0:00:06]} 2. c4 {[%emt 0:00:08]} g6 {[%emt 0:00:05]} 3. Nc3 {[%emt 0:00:07]} Bg7 {[%emt 0:00:03]} 4. e4 {[%emt 0:00:08]} d6 {[%emt 0:00:05]} 5. Be2 {[%emt 0:00:05]} O-O {[%emt 0:00:56]} 6. Nf3 {[%emt 0:00:06]} e5 {[%emt 0:00:27]} 7. dxe5 {[%emt 0:00:13]} dxe5 {[%emt 0:00:14]} 8. Qxd8 {[%emt 0:00:06]} Rxd8 {[%emt 0:00:03]} 9. Bg5 {[%emt 0:00:08]} Re8 {[%emt 0:00:25]} 10. Nd5 {[%emt 0:00:07]} Nxd5 {[%emt 0:00:22]} 11. cxd5 {[%emt 0:00:08]} c6 {[%emt 0:00:02]} 12. Bc4 {[%emt 0:00:06]} cxd5 {[%emt 0:00:04]} 13. Bxd5 {[%emt 0:00:05]} Nd7 {[%emt 0:00:07]} 14. Nd2 {[%emt 0:00:50]} Nc5 {[%emt 0:00:31]} 15. Ke2 {[%emt 0:05:01]} Ne6 {[%emt 0:00:16]} 16. Be3 {[%emt 0:00:04]} Nf4+ {[%emt 0:00:12]} 17. Bxf4 {[%emt 0:01:08]} exf4 {[%emt 0:00:05]} 18. Rab1 {[%emt 0:02:03]} Be6 {[%emt 0:00:23]} 19. Bxe6 {[%emt 0:00:05]} Rxe6 {[%emt 0:00:08]} 20. Rhc1 {[%emt 0:00:05]} Re7 {[%emt 0:00:26]} 21. Rc4 {[%emt 0:00:06]} 1/2-1/2

[Event "25th Nepal Championship 2025"]
[Site "Hetauda"]
[Date "2025.01.27"]
[Round "4.6"]
[White "Subedi, Rajan"]
[Black "Rai, Dhiren"]
[Result "1-0"]
[Annotator "NA RC"]
[ECO "A00"]
[WhiteElo "1982"]
[BlackElo "1878"]
[PlyCount "73"]
[EventDate "2025.01.24"]
[EventType "tourn"]
[EventCountry "NEP"]
[SourceTitle "playchess.com"]
[Source "ChessBase"]
[SourceQuality "1"]
[TimeControl "5400+30"]

1. b4 {[%emt 1:31:00]} e6 {[%emt 1:31:00]} 2. Bb2 {[%emt 0:00:30]} Nf6 {[%emt 0:00:30]} 3. a3 {[%emt 0:00:30]} d5 {[%emt 0:00:30]} 4. e3 {[%emt 0:00:30]} Be7 {[%emt 0:00:30]} 5. c4 {[%emt 0:00:30]} dxc4 {[%emt 0:00:30]} 6. Bxc4 {[%emt 0:00:30]} O-O {[%emt 0:00:30]} 7. d4 {[%emt 0:00:30]} Nbd7 {[%emt 0:00:30]} 8. Nf3 {[%emt 0:00:30]} Nb6 {[%emt 0:00:30]} 9. Bd3 {[%emt 0:00:30]} Bd7 {[%emt 0:00:30]} 10. Nc3 {[%emt 0:00:30]} a5 {[%emt 0:00:30]} 11. b5 {[%emt 0:00:30]} c5 {[%emt 0:00:30]} 12. dxc5 {[%emt 0:00:30]} Bxc5 {[%emt 0:00:30]} 13. O-O {[%emt 0:00:30]} Rc8 {[%emt 0:00:30]} 14. a4 {[%emt 0:00:30]} Nbd5 {[%emt 0:00:30]} 15. Ne4 {[%emt 0:00:30]} Be7 {[%emt 0:00:30]} 16. Qb3 {[%emt 0:00:30]} Nb4 {[%emt 0:00:30]} 17. Rfd1 {[%emt 0:00:30]} Nfd5 {[%emt 0:00:30]} 18. Bf1 {[%emt 0:00:30]} f5 {[%emt 0:00:30]} 19. Ned2 {[%emt 0:00:30]} Bf6 {[%emt 0:00:30]} 20. Ne5 {[%emt 0:00:30]} Bxe5 {[%emt 0:00:30]} 21. Bxe5 {[%emt 0:00:30]} Qg5 {[%emt 0:00:30]} 22. g3 {[%emt 0:00:30]} Be8 {[%emt 0:00:30]} 23. Nc4 {[%emt 0:00:30]} Bh5 {[%emt 0:00:30]} 24. Rdc1 {[%emt 0:00:30]} b6 {[%emt 0:00:30]} 25. Nxb6 {[%emt 0:00:30]} Rxc1 {[%emt 0:00:30]} 26. Rxc1 {[%emt 0:00:30]} f4 {[%emt 0:00:30]} 27. exf4 {[%emt 0:00:30]} Rxf4 {[%emt 0:00:30]} 28. Nxd5 {[%emt 0:00:30]} Nxd5 {[%emt 0:00:30]} 29. Bxf4 {[%emt 0:00:30]} Nxf4 {[%emt 0:00:30]} 30. Qe3 {[%emt 0:00:30]} e5 {[%emt 0:00:30]} 31. Rc8+ {[%emt 0:00:30]} Kf7 {[%emt 0:00:30]} 32. Bc4+ {[%emt 0:00:30]} Kg6 {[%emt 0:00:30]} 33. Rc6+ {[%emt 0:00:30]} Kf5 {[%emt 0:00:30]} 34. Bd3+ {[%emt 0:00:30]} Kg4 {[%emt 0:00:30]} 35. f3+ {[%emt 0:00:30]} Kh3 {[%emt 0:00:30]} 36. Bf1+ {[%emt 0:00:30]} Ng2 {[%emt 0:00:30]} 37. Bxg2# {[%emt 0:00:30]} 1-0

[Event "25th Nepal Championship 2025"]
[Site "Hetauda"]
[Date "2025.01.28"]
[Round "5.1"]
[White "Rai, Dhiren"]
[Black "Silwal, Purushottam"]
[Result "0-1"]
[Annotator "RC"]
[ECO "D71"]
[WhiteElo "1878"]
[BlackElo "2045"]
[PlyCount "70"]
[EventDate "2025.01.24"]
[EventType "tourn"]
[EventCountry "NEP"]
[SourceTitle "playchess.com"]
[Source "ChessBase"]
[SourceQuality "1"]
[TimeControl "5400+30"]

1. d4 {[%emt 0:00:34]} Nf6 {[%emt 0:00:10]} 2. c4 {[%emt 0:00:15]} g6 {[%emt 0:00:04]} 3. e3 {[%emt 0:00:17]} Bg7 {[%emt 0:00:23]} 4. g3 {[%emt 0:00:19]} O-O {[%emt 0:04:46]} 5. Bg2 {[%emt 0:00:07]} d5 {[%emt 0:01:07]} 6. cxd5 {[%emt 0:01:30]} Nxd5 {[%emt 0:00:07]} 7. Nc3 {[%emt 0:00:44]} Nxc3 {[%emt 0:03:37]} 8. bxc3 {[%emt 0:00:11]} c5 {[%emt 0:00:06]} 9. Ne2 {[%emt 0:03:02]} Nc6 {[%emt 0:01:04]} 10. O-O {[%emt 0:00:45]} Re8 {[%emt 0:00:52]} 11. Rb1 {[%emt 0:01:13]} e5 {[%emt 0:00:23]} 12. d5 {[%emt 0:00:52]} Na5 {[%emt 0:00:12]} 13. e4 {[%emt 0:00:30]} b6 {[%emt 0:01:29]} 14. Qd3 {[%emt 0:02:07]} Bb7 {[%emt 0:09:08]} 15. Be3 {[%emt 0:00:37]} Qd7 {[%emt 0:00:51]} 16. Rfc1 {[%emt 0:01:41]} Rad8 {[%emt 0:00:26]} 17. c4 {[%emt 0:01:13]} Ba6 {[%emt 0:00:13]} 18. Bd2 {[%emt 0:00:33]} Qa4 {[%emt 0:05:14]} 19. Bxa5 {[%emt 0:01:02]} bxa5 {[%emt 0:00:34]} 20. Rb3 {[%emt 0:04:48]} Rb8 {[%emt 0:01:47]} 21. Bf1 {[%emt 0:00:33]} Qd7 {[%emt 0:01:02]} 22. Rcb1 {[%emt 0:00:27]} Rb4 {[%emt 0:00:12]} 23. Rxb4 {[%emt 0:01:46]} cxb4 {[%emt 0:04:10]} 24. Rc1 {[%emt 0:00:12]} Rc8 {[%emt 0:00:19]} 25. Qb3 {[%emt 0:00:23]} Bf8 {[%emt 0:00:22]} 26. Kg2 {[%emt 0:00:40]} a4 {[%emt 0:00:48]} 27. Qb2 {[%emt 0:00:06]} Bxc4 {[%emt 0:00:55]} 28. Rxc4 {[%emt 0:03:46]} Rxc4 {[%emt 0:00:17]} 29. Qxe5 {[%emt 0:00:09]} Qe7 {[%emt 0:00:34]} 30. Qxe7 {[%emt 0:00:16]} Bxe7 {[%emt 0:00:05]} 31. e5 {[%emt 0:00:07]} b3 {[%emt 0:00:50]} 32. axb3 {[%emt 0:00:02]} axb3 {[%emt 0:00:06]} 33. d6 {[%emt 0:00:07]} Bd8 {[%emt 0:00:06]} 34. Nf4 {[%emt 0:00:10]} b2 {[%emt 0:00:13]} 35. Bxc4 {[%emt 0:00:10]} b1=Q {[%emt 0:00:06]} 0-1

[Event "25th Nepal Championship 2025"]
[Site "Hetauda"]
[Date "2025.01.28"]
[Round "5.2"]
[White "Jaiswal, Rupesh"]
[Black "Subedi, Rajan"]
[Result "1-0"]
[Annotator "TA"]
[ECO "A30"]
[WhiteElo "2093"]
[BlackElo "1982"]
[PlyCount "93"]
[EventDate "2025.01.24"]
[EventType "tourn"]
[EventCountry "NEP"]
[SourceTitle "playchess.com"]
[Source "ChessBase"]
[SourceQuality "1"]
[TimeControl "5400+30"]

{[%evp 20,93,-1,-18,-3,0,12,7,11,17,10,-23,0,0,0,0,3,0,0,0,0,0,0,0,0,-14,68,70,250,241,398,398,370,371,376,316,378,382,379,372,416,408,514,483,485,471,464,454,640,590,702,633,1478,1468,1281,1433,1310,1147,1049,1041,1594,1008,1004,853,793,775,5057,1457,29964,29968,29961,29969,29980,29981,29980,29981]} 1. Nf3 {[%emt 0:00:06]} d5 {[%emt 0:00:16]} 2. g3 {[%emt 0:00:07]} g6 {[%emt 0:00:42]} 3. Bg2 {[%emt 0:00:16]} Bg7 {[%emt 0:00:11]} 4. O-O {[%emt 0:00:07]} Nf6 {[%emt 0:00:04]} 5. d3 {[%emt 0:00:07]} O-O {[%emt 0:00:29]} 6. c4 {[%emt 0:00:16]} b6 {[%emt 0:01:13]} 7. Nc3 {[%emt 0:02:49]} Bb7 {[%emt 0:00:08]} 8. cxd5 {[%emt 0:05:32]} Nxd5 {[%emt 0:00:17]} 9. Bd2 {[%emt 0:00:03]} c5 {[%emt 0:00:38]} 10. a3 {[%emt 0:00:11]} Nc6 {[%emt 0:02:31]} 11. Rb1 {[%emt 0:00:09]} (11. Rc1 $5) 11... Nd4 {[%emt 0:02:37] is the legacy move (11...Rc8). A30: Symmetrical English: Double Fianchetto and Hedgehog.} 12. Nxd4 {[%emt 0:01:49]} Nxc3 {[%emt 0:01:03]} 13. bxc3 {[%emt 0:03:03] A sharp opening} Bxg2 {[%emt 0:00:25] The position is equal.} 14. Kxg2 {[%emt 0:08:06]} cxd4 {[%emt 0:00:35]} 15. cxd4 {[%emt 0:01:51]} Qxd4 {[%emt 0:00:24]} 16. Qb3 {[%emt 0:03:20]} Rac8 {[%emt 0:01:25]} 17. Be3 $146 {[%emt 0:01:18]} (17. e3) 17... Qc3 {[%emt 0:00:34]} 18. Qa4 {[%emt 0:04:33][%cal Of1c1]} Qc6+ {[%emt 0:03:50]} 19. Qxc6 {[%emt 0:00:32]} Rxc6 {[%emt 0:00:09]} 20. Rfc1 {[%emt 0:00:31]} Rfc8 {[%emt 0:00:07]} 21. Rxc6 {[%emt 0:03:51]} Rxc6 $11 {[%emt 0:00:07][%mdl 4096] Endgame KRB-KRB} 22. Rb4 {[%emt 0:00:58]} Kf8 {[%emt 0:02:07]} (22... Be5 $11) 23. Ra4 $1 $14 {[%emt 0:02:14]} Rc7 $2 {[%emt 0:02:32] [#] This costs Black the game.} (23... a5 $14) 24. Bxb6 $1 $18 {[%emt 0:00:33]} Rc2 {[%emt 0:04:47]} (24... Rb7 {was worth a try.}) 25. Rxa7 {[%emt 0:00:29] White wants to mate with Ra8+.} f5 {[%emt 0:00:09]} 26. e3 {[%emt 0:01:11]} Bc3 {[%emt 0:01:06]} 27. Ba5 {[%emt 0:00:45]} Bxa5 {[%emt 0:00:13]} 28. Rxa5 {[%emt 0:00:07] KR-KR. White is two pawns up.} Kf7 {[%emt 0:00:32]} 29. h4 {[%emt 0:00:21]} h6 {[%emt 0:00:24] [#]} 30. h5 $1 {[%emt 0:00:25]} e6 {[%emt 0:00:21]} (30... gxh5 31. Rxf5+) 31. hxg6+ {[%emt 0:00:06]} Kxg6 {[%emt 0:00:07]} 32. d4 {[%emt 0:00:05]} Kf6 {[%emt 0:04:46]} 33. Ra6 {[%emt 0:00:37]} Rd2 {[%emt 0:00:08]} (33... h5 $142 34. d5 Ke5 35. Rxe6+ (35. dxe6 Kf6 $18) 35... Kxd5) 34. a4 {[%emt 0:00:28][%cal Ba3a4,Ba4a5,Ba5a6][%mdl 32]} Kf7 {[%emt 0:00:40]} 35. a5 {[%emt 0:00:09]} Kf6 {[%emt 0:00:06]} 36. Ra8 {[%emt 0:00:30]} Ra2 {[%emt 0:00:25]} 37. a6 {[%emt 0:00:08]} Kf7 {[%emt 0:00:21]} 38. a7 {[%emt 0:00:05]} Kg7 {[%emt 0:00:26] Dodges Rh8} 39. Kf3 {[%emt 0:00:19]} Kh7 {[%emt 0:00:28]} 40. Kf4 {[%emt 0:00:33] Hoping for Ke5.} Ra5 {[%emt 0:00:26]} 41. Re8 {[%emt 0:01:55]} Rxa7 {[%emt 0:00:11]} 42. Rxe6 {[%emt 0:00:02]} Rf7 {[%emt 0:00:20]} 43. f3 {[%emt 0:00:21]} (43. d5 $142 Kg7 44. d6) 43... Kg7 {[%emt 0:00:34]} 44. d5 {[%emt 0:00:04][%cal Bd4d5,Bd5d6,Bd6d7][%mdl 32] White mates.} Rf8 {[%emt 0:00:45]} 45. d6 {[%emt 0:00:10]} h5 {[%emt 0:00:37]} 46. d7 {[%emt 0:00:11]} Rd8 {[%emt 0:00:08]} 47. Rd6 {[%emt 0:00:04] Weighted Error Value: White=0.17 (very precise) /Black=0.60  Loses game:     	---       	Black=1      Mistake:       	---       	Black=3      Inaccurate:     	White=1     	Black=1      OK:         	White=12    	Black=6      Strong:       	White=2     	---} (47. Kxf5 Rxd7 48. Rg6+ Kh7 $18) 1-0